Workbook

Sheet 연립주택
A1: □ 연립주택
A3: 일련 번호 | B3: 용도 | C3: 번호 | D3: 면적 | F3: 공급금액(원) | G3: 공급단가 | I3: 건폐율 (%) | J3: 용적율 (%) | K3: 최고높이 /층수 | L3: 용도지역 | M3: 토지사용 가능시기 | N3: 납부계좌 (가상계좌) | O3: 1순위 : 5년 무이자 분할납부 | P3: 2순위 : 2년 무이자할부+토지리턴제
D4: ㎡ | E4: 3.3㎡ | G4: ㎡단가(원) | H4: 3.3㎡단가(원)
A5: 합 계 | D5: =SUM(D6:D7) -> 99098.1 | E5: =SUM(E6:E7) -> 29977.04035 | F5: =SUM(F6:F7) -> 155954596000
A6: 1 | B6: 연립주택 | C6: B3 | D6: 60175.4 | E6: =D6/3.3058 -> 18202.97659 | F6: =ROUNDDOWN(G6*D6,-3) -> 79276877000 | G6: 1317430 | H6: =G6*3.3058 -> 4355160.094 | I6: 50 | J6: 70 | K6: 4층 | L6: 1종일반주거 | M6: 2012년 9월이후 | N6: 79001299638867 | O6: 계약금10%, 중도금 잔금 매1년단위 5년 분할납부 (중도금 각 10%, 잔금 50%) | P6: 토지리턴제 (계약금10%, 중도금 6월단위 20% 3회, 잔금 30%)
A7: 2 | C7: B4 | D7: 38922.7 | E7: =D7/3.3058 -> 11774.06377 | F7: =ROUNDDOWN(G7*D7,-3) -> 76677719000 | G7: 1970000 | H7: =G7*3.3058 -> 6512426 | I7: 50 | J7: 100 | K7: 4층 | L7: 1종일반주거 | M7: 2012년 9월이후 | N7: 79001299638855 | O7: 계약금10%, 중도금 잔금 매1년단위 5년 분할납부 (중도금 각 10%, 잔금 50%) | P7: 토지리턴제 (계약금10%, 중도금 6월단위 20% 3회, 잔금 30%)

Sheet 단독
A1: □ 블록형 단독
A3: 일련 번호 | B3: 용도 | C3: 블록형 단독주택용지 (A) | M3: 토지사용 가능시기 | N3: 납부계좌 (가상계좌) | O3: 분할수납 조건 | P3: 특별공급조건
C4: 가지번 | D4: 확정지번 | E4: 면적(㎡) | F4: 면적(3.3㎡) | G4: 단가(원) | H4: 공급가격(원) | I4: 건폐율 (%) | J4: 용적율 (%) | K4: 최고높이 /층수 | L4: 용도지역
A5: 블록형단독 소계 | E5: =SUM(E6:E10) -> 28341 | F5: =SUM(F6:F10) -> 8573.113921 | H5: =SUM(H6:H10) -> 40054095000
A6: 1 | B6: 블록형단독 | C6: F1 | D6: 2단계 | E6: 6196 | F6: =E6/3.3058 -> 1874.281566 | G6: 1295000 | H6: =E6*G6 -> 8023820000 | I6: 50 | J6: 80 | K6: 3층 | L6: 1종일반주거 | M6: 2012년 9월 이후 | N6: 79001299650582 | O6: 계약금 10%, 중도금 6월단위 20% 3회, 잔금 30% | P6: 토지리턴제
A7: 2 | B7: 블록형단독 | C7: F2-1 | D7: 2단계 | E7: 3943 | F7: =E7/3.3058 -> 1192.752133 | G7: 1415000 | H7: 5579345000 | I7: 50 | J7: 80 | K7: 3층 | L7: 1종일반주거 | M7: 2012년 9월 이후 | N7: 79001299650569 | O7: 계약금 10%, 중도금 6월단위 20% 3회, 잔금 30% | P7: 토지리턴제
A8: 3 | B8: 블록형단독 | C8: F2-2 | D8: 2단계 | E8: 5908 | F8: =E8/3.3058 -> 1787.161958 | G8: 1455000 | H8: =E8*G8 -> 8596140000 | I8: 50 | J8: 80 | K8: 3층 | L8: 1종일반주거 | M8: 2012년 9월 이후 | N8: 79001299650557 | O8: 계약금 10%, 중도금 6월단위 20% 3회, 잔금 30% | P8: 토지리턴제
A9: 4 | B9: 블록형단독 | C9: F3-1 | D9: 2단계 | E9: 5740 | F9: =E9/3.3058 -> 1736.342186 | G9: 1415000 | H9: =E9*G9 -> 8122100000 | I9: 50 | J9: 80 | K9: 3층 | L9: 1종일반주거 | M9: 2012년 9월 이후 | N9: 79001299650545 | O9: 계약금 10%, 중도금 6월단위 20% 3회, 잔금 30% | P9: 토지리턴제
A10: 5 | B10: 블록형단독 | C10: F3-2 | D10: 2단계 | E10: 6554 | F10: =E10/3.3058 -> 1982.576078 | G10: 1485000 | H10: =E10*G10 -> 9732690000 | I10: 50 | J10: 80 | K10: 3층 | L10: 1종일반주거 | M10: 2012년 9월 이후 | N10: 79001299650533 | O10: 계약금 10%, 중도금 6월단위 20% 3회, 잔금 30% | P10: 토지리턴제
